bitfinex/quotes_BTCUSD_20220201
["timestamp","ask_amount","ask_price","bid_price","bid_amount"]
[1643729716240,0.05,38441.0,38430.0,0.065053]
[1643729716453,0.34330732,38441.0,38430.0,0.065053]
[1643729716739,0.00144464,38438.0,38430.0,0.065053]
[1643729716939,0.00144464,38438.0,38431.0,0.147193]
[1643729717187,0.00144464,38438.0,38432.0,0.10114369]
[1643729717385,0.00144464,38438.0,38433.0,0.147191]
[1643729717595,0.17673819,38452.0,38437.0,0.2]
[1643729717596,0.001,38452.0,38437.0,0.2]
[1643729717786,0.001,38452.0,38438.0,0.56110416]
[1643729718186,0.001,38452.0,38450.0,0.13055131]
[1643729718390,0.001,38452.0,38450.0,0.21638151]
[1643729718586,0.001,38452.0,38450.0,0.26638151]
[1643729718785,0.001,38452.0,38451.0,0.147094]
[1643729720088,0.001,38452.0,38443.0,0.83048899]
[1643729720386,0.001,38452.0,38443.0,0.611]
[1643729720841,0.28656722,38449.0,38443.0,0.72347638]
[1643729721040,0.33656722,38449.0,38446.0,0.09091376]
[1643729721239,0.05,38449.0,38446.0,0.09091376]
[1643729721437,0.05,38449.0,38441.0,0.065031]
[1643729721438,0.00144474,38448.0,38441.0,0.065031]
[1643729721645,0.00144474,38448.0,38436.0,0.5709]
[1643729721840,0.0479,38447.0,38435.0,0.24]
[1643729722039,0.0479,38447.0,38426.0,0.00512112]
[1643729722438,0.09559192,38443.0,38437.0,0.08795971]
[1643729722638,0.09559192,38443.0,38430.0,0.14769543]
[1643729722639,0.33728399,38438.0,38430.0,0.14769543]
[1643729722837,0.27682627,38437.0,38430.0,0.14769543]
[1643729723037,0.0479,38437.0,38430.0,0.14769543]
[1643729723642,0.0479,38437.0,38430.0,0.19769543]
[1643729723837,0.0479,38437.0,38430.0,0.14769543]
[1643729724038,0.0479,38437.0,38431.0,0.0901189]
[1643729724441,0.0479,38437.0,38432.0,0.26016313]
[1643729724698,0.0479,38443.0,38433.0,0.04595086]
[1643729724896,0.0479,38443.0,38434.0,0.147182]
[1643729725100,0.0479,38443.0,38434.0,0.05]
[1643729725397,0.0479,38443.0,38441.0,0.08026268]
[1643729725596,0.23132485,38442.0,38441.0,0.08026268]
[1643729725897,0.23132485,38442.0,38430.0,0.14769543]
[1643729725898,0.79748807,38442.0,38430.0,0.14769543]
[1643729726097,0.49763807,38442.0,38430.0,0.14769543]
[1643729726302,0.49763807,38442.0,38429.0,0.0012802]
[1643729726503,0.1479,38441.0,38429.0,0.02149892]
[1643729726699,0.06506908,38438.0,38429.0,0.0012802]
[1643729726899,0.28695723,38437.0,38434.0,0.07648703]
[1643729727297,0.34985,38436.0,38434.0,0.07648703]
[1643729727500,0.0479,38435.0,38434.0,0.07648703]
[1643729729349,0.0479,38435.0,38434.0,0.07148703]
[1643729729547,0.065062,38446.0,38434.0,0.07148703]
[1643729729548,0.23132485,38442.0,38434.0,0.12148703]
[1643729729746,0.23132485,38442.0,38434.0,0.07148703]
[1643729729747,0.2123165,38441.0,38434.0,0.07148703]
[1643729730150,0.21055853,38440.0,38434.0,0.07148703]
[1643729730346,0.21055853,38440.0,38429.0,0.00051208]
[1643729730548,0.27919853,38439.0,38429.0,0.00051208]
[1643729730747,0.23114555,38438.0,38424.0,0.6785]
[1643729730948,0.23114555,38438.0,38429.0,0.00102415]
[1643729731148,0.34985,38437.0,38429.0,0.00102415]
[1643729731350,0.23326332,38430.0,38429.0,0.00102415]
[1643729731748,0.28326332,38430.0,38429.0,0.00102415]
[1643729732092,0.28326332,38430.0,38419.0,0.11450656]
[1643729732093,0.05,38430.0,38424.0,0.11420666]
[1643729732295,0.0479,38430.0,38428.0,0.00102419]
[1643729733195,0.0479,38430.0,38429.0,0.07517019]
[1643729733396,0.0479,38430.0,38427.0,0.00104981]
[1643729733596,0.2080367,38429.0,38427.0,0.00104981]
[1643729733797,0.0479,38428.0,38427.0,0.00104981]
[1643729733998,0.28456693,38428.0,38427.0,0.00104981]
[1643729734201,0.68441693,38428.0,38427.0,0.00104981]
[1643729734396,0.68441693,38428.0,38420.0,0.15277525]
[1643729734604,0.1,38427.0,38426.0,0.00104985]
[1643729734802,1.4159653,38427.0,38426.0,0.00104985]
[1643729735198,1.4159653,38427.0,38420.0,0.00420004]
[1643729735199,0.7159653,38427.0,38420.0,0.00420004]
[1643729735400,0.48001931,38426.0,38420.0,0.00420004]
[1643729735598,0.0479,38425.0,38416.0,0.002]
[1643729735861,0.27607278,38424.0,38416.0,0.002]
[1643729736056,0.0650855,38422.0,38416.0,0.002]
[1643729736255,0.0479,38421.0,38416.0,0.002]
[1643729736456,0.0479,38421.0,38417.0,0.08874821]
[1643729736657,0.0650855,38422.0,38418.0,0.26744739]
[1643729736658,0.05,38422.0,38418.0,0.26744739]
[1643729736860,0.05,38422.0,38419.0,0.147268]
[1643729737057,0.05,38423.0,38420.0,0.04010418]
[1643729737257,0.18016931,38426.0,38420.0,0.14734882]
[1643729737456,0.18016931,38426.0,38421.0,0.29076497]
[1643729737658,0.18016931,38426.0,38421.0,0.34076497]
[1643729737957,0.18016931,38426.0,38422.0,0.21595445]
[1643729738157,0.18016931,38426.0,38422.0,0.00052216]
[1643729738358,0.06507766,38425.0,38422.0,0.00052216]
[1643729738961,0.34985,38424.0,38422.0,0.00052216]
[1643729739160,0.44775,38424.0,38416.0,0.002]
[1643729739369,0.0979,38424.0,38422.0,0.0010442]
[1643729739594,0.34985,38423.0,38422.0,0.0010442]
[1643729739794,0.0479,38423.0,38422.0,0.0010442]
[1643729740396,0.0479,38423.0,38416.0,0.002]
[1643729740594,0.0479,38423.0,38421.0,0.00104028]
[1643729741596,0.0479,38423.0,38420.0,0.10128475]
[1643729741797,0.0479,38423.0,38420.0,0.10232504]
[1643729742201,0.0479,38423.0,38420.0,0.00104029]
[1643729742401,0.34985,38422.0,38420.0,0.00104029]
[1643729742600,0.05,38422.0,38420.0,0.00104029]
[1643729742800,0.34985,38421.0,38416.0,0.002]
[1643729743100,0.05,38421.0,38419.0,0.07504105]
[1643729743372,0.0479,38423.0,38419.0,0.07504105]
[1643729743763,0.0479,38423.0,38419.0,0.00104032]
[1643729743966,0.555373,38422.0,38419.0,0.00104032]
[1643729744165,0.0479,38421.0,38419.0,0.00104032]
[1643729744372,0.59167551,38420.0,38419.0,0.00104032]
[1643729744571,0.63957551,38420.0,38419.0,0.00104032]
[1643729744769,0.63957551,38420.0,38413.0,0.00416189]
[1643729744770,0.85,38419.0,38413.0,0.00416189]
[1643729744972,0.85,38419.0,38405.0,0.0031]
[1643729744973,0.61379716,38418.0,38405.0,0.0031]
[1643729745170,0.66379716,38418.0,38405.0,0.0031]
[1643729745369,0.16510384,38417.0,38405.0,0.0031]
[1643729745569,0.39775,38416.0,38405.0,0.0031]
[1643729745768,0.39775,38416.0,38409.0,0.090929]
[1643729745769,0.1,38415.0,38409.0,0.090929]
[1643729745969,0.61157515,38414.0,38409.0,0.090929]
[1643729746170,0.74426485,38414.0,38409.0,0.090929]
[1643729746369,0.74426485,38414.0,38406.0,0.12152962]
[1643729746370,0.1,38413.0,38406.0,0.12152962]
[1643729746569,0.0479,38412.0,38406.0,0.12152962]
[1643729746769,0.17811016,38412.0,38406.0,0.12152962]
[1643729747202,0.17811016,38412.0,38406.0,0.17152962]
[1643729747203,0.18021016,38412.0,38406.0,0.17152962]
[1643729747397,0.01890973,38424.0,38411.0,0.30804865]
[1643729747398,0.0479,38421.0,38411.0,0.30804865]
[1643729747596,0.0479,38421.0,38406.0,0.17152962]
[1643729747597,0.29132063,38417.0,38406.0,0.12152962]
[1643729747797,0.06590164,38415.0,38406.0,0.12152962]
[1643729747997,0.00080803,38415.0,38406.0,0.11652962]
[1643729748197,0.0479,38414.0,38410.0,0.07759013]
[1643729748596,0.0479,38414.0,38406.0,0.11652962]
[1643729748996,0.0479,38414.0,38410.0,0.00062478]
[1643729749398,0.48006495,38413.0,38410.0,0.00062478]
[1643729749799,0.53006495,38413.0,38412.0,0.4972686]
[1643729749996,0.18021495,38413.0,38412.0,0.49173348]
[1643729750196,0.05,38413.0,38412.0,0.14173348]
[1643729750697,0.16081186,38414.0,38412.0,0.14173348]
[1643729750946,0.34985,38413.0,38412.0,0.13796254]
[1643729751149,0.13019315,38419.0,38413.0,0.6]
[1643729751350,0.21546836,38429.0,38414.0,0.147295]
[1643729751547,0.02101171,38425.0,38414.0,0.23784558]
[1643729751746,0.02101171,38425.0,38415.0,0.03849451]
[1643729751946,0.02101171,38425.0,38421.0,0.12394351]
[1643729752147,0.02101171,38425.0,38414.0,0.1836]
[1643729752148,0.10440315,38425.0,38414.0,0.1836]
[1643729752353,0.21546836,38424.0,38413.0,0.5825]
[1643729752547,0.26336836,38424.0,38413.0,0.5825]
[1643729752747,0.00112975,38421.0,38413.0,0.5825]
[1643729752949,0.26336836,38424.0,38413.0,0.5825]
[1643729752950,0.26333377,38424.0,38413.0,0.5825]
[1643729753146,0.0479,38424.0,38421.0,0.11669076]
[1643729753346,0.34985,38423.0,38421.0,0.11669076]
[1643729753545,0.39985,38423.0,38421.0,0.11669076]
[1643729753747,0.1,38422.0,38421.0,0.11669076]
[1643729753946,0.44985,38422.0,38421.0,0.11669076]
[1643729754160,0.44985,38422.0,38421.0,0.1414509]
[1643729754350,0.44985,38422.0,38413.0,0.5825]
[1643729754608,0.2569355,38421.0,38410.0,0.01898459]
[1643729754806,0.05,38416.0,38410.0,0.01898459]
[1643729755012,0.1,38418.0,38405.0,0.1856]
[1643729755207,0.2,38420.0,38405.0,0.1856]
[1643729755708,0.2,38420.0,38405.0,0.002]
[1643729755709,0.05,38412.0,38405.0,0.002]
[1643729755909,0.05,38408.0,38405.0,0.002]
[1643729756308,0.1,38410.0,38405.0,0.002]
[1643729756508,0.1,38410.0,38405.0,0.1542778]
[1643729756709,0.05,38410.0,38405.0,0.1542778]
[1643729756907,0.05,38408.0,38406.0,0.09952183]
[1643729757107,0.065113,38407.0,38406.0,0.09952183]
[1643729757709,0.165113,38407.0,38406.0,0.09952183]
[1643729758455,0.115113,38407.0,38406.0,0.09952183]
[1643729758654,0.05,38407.0,38406.0,0.09952183]
[1643729758869,0.05,38410.0,38406.0,0.09952183]
[1643729759356,0.215106,38411.0,38406.0,0.09952183]
[1643729759556,0.065106,38411.0,38406.0,0.09952183]
[1643729759953,0.05,38412.0,38407.0,0.00062841]
[1643729760159,0.065099,38416.0,38406.0,0.09515024]
[1643729760353,0.25509576,38415.0,38406.0,0.09515024]
[1643729760954,0.065099,38416.0,38406.0,0.09515024]
[1643729761156,0.065099,38416.0,38407.0,0.21400644]
[1643729761360,0.065092,38419.0,38410.0,0.1]
[1643729761558,0.02037383,38421.0,38410.0,0.1]
[1643729761559,0.02037383,38421.0,38411.0,0.147309]
[1643729761755,0.02037383,38421.0,38411.0,0.36131544]
[1643729761955,0.02037383,38421.0,38416.0,0.21389199]
[1643729762200,0.5,38432.0,38417.0,0.50918544]
[1643729762400,1.56170037,38441.0,38417.0,0.62425444]
[1643729762600,1.66301394,38441.0,38436.0,0.10378672]
[1643729762804,0.34985,38440.0,38436.0,0.10378672]
[1643729763099,0.34985,38440.0,38422.0,0.0479]
[1643729763100,0.26196668,38426.0,38422.0,0.0479]
[1643729763298,0.26196668,38426.0,38423.0,0.147227]
[1643729763497,0.05,38430.0,38423.0,0.147227]
[1643729763698,0.05,38430.0,38421.0,0.15504037]
[1643729763899,0.14001773,38432.0,38427.0,0.09858792]
[1643729764397,0.2719323,38429.0,38427.0,0.09858792]
[1643729764597,0.2719323,38429.0,38418.0,0.21400644]
[1643729764801,0.05,38418.0,38411.0,0.00010147]
[1643729765000,0.05,38420.0,38405.0,0.21663331]
[1643729765197,0.05,38421.0,38405.0,0.09194431]
[1643729765402,0.05,38422.0,38405.0,0.09194431]
[1643729765598,0.25167826,38417.0,38414.0,0.12693235]
[1643729765857,0.065103,38414.0,38404.0,0.5707]
[1643729766350,0.115103,38414.0,38404.0,0.5707]
[1643729766649,0.115103,38414.0,38410.0,0.01827786]
[1643729767251,0.13021026,38413.0,38410.0,0.01827786]
[1643729767451,0.13021026,38413.0,38412.0,0.07825164]
[1643729768252,0.18021026,38413.0,38412.0,0.07825164]
[1643729768452,0.05,38412.0,38410.0,0.01827786]
[1643729768653,0.74759367,38411.0,38410.0,0.01827786]
[1643729768857,0.94549367,38411.0,38410.0,0.01827786]
[1643729769056,0.94549367,38411.0,38403.0,0.00235067]
[1643729769057,0.05,38405.0,38403.0,0.00235067]
[1643729769258,0.89549367,38411.0,38400.0,0.0031]
[1643729769259,0.1,38401.0,38400.0,0.0031]
[1643729769452,0.57470679,38401.0,38400.0,0.0031]
[1643729769696,0.71090891,38401.0,38400.0,0.0031]
[1643729769896,0.81090891,38401.0,38400.0,0.0031]
[1643729770602,0.05,38398.0,38397.0,0.0031]
[1643729770797,0.49775,38398.0,38397.0,0.0031]
[1643729770998,0.5301,38398.0,38397.0,0.0031]
[1643729771198,0.6801,38398.0,38397.0,0.0031]
[1643729771398,0.6801,38398.0,38396.0,0.002]
[1643729771399,0.26586918,38397.0,38396.0,0.002]
[1643729771599,0.76361918,38397.0,38396.0,0.002]
[1643729771798,0.76361918,38397.0,38392.0,0.0031]
[1643729771799,0.065131,38395.0,38390.0,0.0031]
[1643729772099,0.065131,38395.0,38390.0,0.00807937]
[1643729772100,0.065132,38393.0,38390.0,0.00807937]
[1643729772300,0.34985,38392.0,38390.0,0.00807937]
[1643729772598,0.39775,38392.0,38390.0,0.00807937]
[1643729772798,0.59775,38392.0,38391.0,0.00655931]
[1643729772997,0.59775,38392.0,38391.0,0.09509318]
[1643729773204,0.59775,38392.0,38391.0,0.00655931]
[1643729773442,0.54775,38392.0,38391.0,0.00655931]
[1643729773646,0.59775,38392.0,38391.0,0.00655931]
[1643729773844,0.80270778,38392.0,38391.0,0.00655931]
[1643729774643,2.23470778,38392.0,38391.0,0.00655931]
[1643729774844,0.75270778,38392.0,38391.0,0.00655931]
[1643729775145,0.85270778,38392.0,38391.0,0.00655931]
[1643729775343,0.64775,38392.0,38391.0,0.00655931]
[1643729776144,0.75175487,38392.0,38391.0,0.00655931]
[1643729776346,0.75175487,38392.0,38391.0,0.45655931]
[1643729776347,0.0479,38392.0,38391.0,0.45655931]
[1643729776648,0.0479,38392.0,38391.0,0.00655931]
[1643729777294,0.14359993,38392.0,38391.0,0.00655931]
[1643729777695,0.20872493,38392.0,38391.0,0.00655931]
[1643729777894,0.55857493,38392.0,38391.0,0.00655931]
[1643729778299,0.75857493,38392.0,38391.0,0.00655931]
[1643729778500,0.80857493,38392.0,38391.0,0.00655931]
[1643729778697,0.75857493,38392.0,38391.0,0.00655931]
[1643729778897,0.80857493,38392.0,38391.0,0.00655931]
[1643729779298,2.19057493,38392.0,38391.0,0.00655931]
[1643729779698,2.14057493,38392.0,38391.0,0.00655931]
[1643729779900,2.14057493,38392.0,38390.0,0.00434485]
[1643729779901,1.25,38391.0,38390.0,0.00434485]
[1643729780101,0.49775,38391.0,38390.0,0.0031]
[1643729780301,0.49775,38391.0,38390.0,0.00434485]
[1643729780501,0.26082493,38392.0,38390.0,0.00434485]
[1643729780502,0.065125,38392.0,38390.0,0.00434485]
[1643729780701,0.13025695,38393.0,38390.0,0.00434485]
[1643729780702,0.06512695,38393.0,38390.0,0.00434485]
[1643729780952,0.26047561,38399.0,38390.0,0.00434485]
[1643729780953,0.0651145,38397.0,38390.0,0.00434485]
[1643729781347,0.0651145,38397.0,38390.0,0.0031]
[1643729781546,0.13927767,38397.0,38392.0,0.08363127]
[1643729782146,0.20439667,38397.0,38392.0,0.08363127]
[1643729782345,0.1302335,38397.0,38392.0,0.08363127]
[1643729782547,0.1302335,38397.0,38392.0,0.08238648]
[1643729782749,0.065114,38398.0,38393.0,0.00124475]
[1643729782951,0.19534343,38401.0,38393.0,0.00124475]
[1643729782952,0.06511143,38401.0,38393.0,0.21644305]
[1643729783250,0.06511143,38401.0,38393.0,0.00124475]
[1643729783251,0.065113,38400.0,38393.0,0.00124475]
[1643729783452,0.09652965,38399.0,38393.0,0.00124475]
[1643729783651,0.14652965,38399.0,38390.0,0.0031]
[1643729783851,0.05,38396.0,38390.0,0.0031]
[1643729784050,0.05,38396.0,38395.0,0.00124469]
[1643729784249,0.44775,38396.0,38395.0,0.00124469]
[1643729784454,0.49775,38396.0,38395.0,0.00124469]
[1643729784697,0.6935031,38396.0,38395.0,0.00124469]
[1643729784896,0.6935031,38396.0,38390.0,0.0031]
[1643729785098,0.065135,38394.0,38390.0,0.0031]
[1643729785299,0.34985,38393.0,38390.0,0.0031]
[1643729785497,0.48012081,38393.0,38390.0,0.0031]
[1643729785698,0.1,38392.0,38390.0,0.0031]
[1643729785901,0.34985,38391.0,38390.0,0.0031]
[1643729786104,0.13027,38392.0,38390.0,0.0031]
[1643729786301,0.34985,38391.0,38390.0,0.0031]
[1643729786702,0.44985,38391.0,38390.0,0.0031]
[1643729786902,0.34985,38391.0,38390.0,0.0031]
[1643729787206,0.20703949,38393.0,38390.0,0.0031]
[1643729787207,0.19540481,38393.0,38390.0,0.0031]
[1643729787402,0.26047449,38399.0,38390.0,0.0031]
[1643729788207,0.07586441,38397.0,38391.0,0.09284565]
[1643729788451,0.07586441,38397.0,38390.0,0.0031]
[1643729788653,0.07586441,38397.0,38392.0,0.00124477]
[1643729788853,0.34985,38396.0,38392.0,0.00124477]
[1643729789452,0.46818419,38395.0,38392.0,0.00124477]
[1643729789651,0.414979,38394.0,38392.0,0.00124477]
[1643729789852,0.414979,38394.0,38390.0,0.0031]
[1643729790055,0.06512499,38395.0,38392.0,0.00124479]
[1643729790253,0.13024226,38399.0,38392.0,0.00124479]
[1643729790454,0.065118,38397.0,38392.0,0.00124479]
[1643729790652,0.19636,38400.0,38394.0,0.13575994]
[1643729790963,0.19636,38400.0,38397.0,0.51702477]
[1643729790964,0.000965,38400.0,38397.0,0.51702477]
[1643729791157,0.000965,38400.0,38398.0,0.231711]
[1643729791353,0.000965,38400.0,38398.0,0.281711]
[1643729791752,0.000965,38400.0,38398.0,0.134317]
[1643729792196,0.000965,38400.0,38399.0,0.14738]
[1643729792396,0.000965,38400.0,38398.0,0.134317]
[1643729794101,0.000965,38400.0,38399.0,0.14738]
[1643729794300,0.000965,38400.0,38399.0,0.19738]
[1643729794500,0.000965,38400.0,38399.0,0.14738]
[1643729794901,0.000965,38400.0,38399.0,0.43537259]
[1643729795100,0.000965,38400.0,38399.0,0.78537259]
[1643729795300,0.000965,38400.0,38399.0,0.49738]
[1643729795501,0.000965,38400.0,38399.0,0.14738]
[1643729795702,0.010965,38400.0,38399.0,0.14738]
[1643729795951,0.010965,38400.0,38398.0,0.00102057]
[1643729796555,0.414964,38399.0,38398.0,0.00102057]
[1643729796755,0.84271844,38399.0,38398.0,0.00102057]
[1643729797150,0.84271844,38399.0,38397.0,0.00102059]
[1643729797350,0.3965876,38398.0,38397.0,0.00102059]
[1643729797552,0.7464376,38398.0,38397.0,0.00102059]
[1643729798248,0.6464376,38398.0,38391.0,0.13529867]
[1643729798449,0.6464376,38398.0,38396.0,0.00101502]
[1643729798450,0.065128,38398.0,38396.0,0.00101502]
[1643729798648,0.34985,38397.0,38396.0,0.00101502]
[1643729798853,0.26048771,38399.0,38396.0,0.00101502]
[1643729798854,0.13023786,38399.0,38396.0,0.00101502]
[1643729799451,0.13023786,38399.0,38391.0,0.18029867]
[1643729799705,0.20402559,38398.0,38396.0,0.00101502]
[1643729799908,0.34985,38397.0,38396.0,0.00101502]
[1643729800304,0.1479,38397.0,38396.0,0.00101502]
[1643729800503,0.49775,38397.0,38396.0,0.00101502]
[1643729800704,0.065127,38396.0,38390.0,0.0031]
[1643729800907,0.10235419,38393.0,38390.0,0.0031]
[1643729801105,0.213027,38396.0,38390.0,0.0031]
[1643729801106,0.1479,38396.0,38390.0,0.0031]
[1643729801306,0.06512423,38395.0,38390.0,0.0031]
[1643729801614,0.065116,38399.0,38390.0,0.0031]
[1643729802007,0.065116,38399.0,38391.0,0.00101641]
[1643729802205,0.065116,38399.0,38393.0,0.12655885]
[1643729802407,0.065119,38396.0,38394.0,0.08897948]
[1643729805753,0.065119,38396.0,38393.0,0.00101606]
[1643729806157,0.2014034,38395.0,38393.0,0.00101606]
[1643729806354,0.2014034,38395.0,38387.0,0.00438091]
[1643729806355,0.06512345,38395.0,38387.0,0.00438091]
[1643729806556,0.130243,38396.0,38388.0,0.147434]
[1643729806758,0.130243,38396.0,38394.0,0.12067919]
[1643729806957,0.065119,38396.0,38394.0,0.12067919]
[1643729807401,0.065119,38396.0,38395.0,0.09713752]
[1643729808004,0.065119,38396.0,38394.0,0.12067919]
[1643729808605,0.0008055,38402.0,38397.0,0.95]
[1643729808807,0.690853,38411.0,38400.0,0.1]
[1643729808808,0.195353,38411.0,38400.0,0.1]
[1643729809008,1.11273965,38426.0,38404.0,0.1]
[1643729809009,0.74893965,38426.0,38404.0,0.1]
[1643729809206,0.5541,38430.0,38406.0,0.55]
[1643729809207,0.17586796,38425.0,38406.0,0.55]
[1643729809407,0.24094296,38429.0,38407.0,0.31155522]
[1643729809603,0.24094296,38429.0,38424.0,0.152747]
[1643729809604,0.065075,38429.0,38424.0,0.152747]
[1643729809802,0.065075,38429.0,38414.0,0.24937668]
[1643729809803,0.34985,38428.0,38415.0,0.21055522]
[1643729810004,0.04004271,38432.0,38415.0,0.05]
[1643729810205,0.04004271,38432.0,38413.0,0.8348]
[1643729810403,0.04004271,38432.0,38413.0,0.7348]
[1643729810604,0.09129616,38419.0,38413.0,0.7348]
[1643729810859,0.09129616,38419.0,38413.0,0.5587]
[1643729810860,0.2511955,38416.0,38413.0,0.5587]
[1643729811055,0.2511955,38416.0,38411.0,0.13355023]
[1643729812853,0.09129616,38419.0,38415.0,0.09312071]
[1643729813051,0.065088,38423.0,38415.0,0.09312071]
[1643729813452,0.34985,38422.0,38415.0,0.09312071]
[1643729813651,0.065088,38423.0,38415.0,0.09312071]
[1643729813851,0.065088,38423.0,38419.0,0.13313404]
[1643729814052,0.0944018,38425.0,38419.0,0.13313404]
[1643729814354,0.34985,38424.0,38408.0,0.2246]
[1643729814609,0.0944018,38425.0,38408.0,0.43803398]
[1643729814805,0.26486482,38420.0,38417.0,0.02047597]
[1643729815012,0.26486482,38420.0,38408.0,0.257653]
[1643729815205,0.00142602,38418.0,38415.0,0.15203866]
[1643729815406,0.00142602,38418.0,38412.0,0.07853786]
[1643729815605,0.00142602,38418.0,38412.0,0.12853786]
[1643729815806,0.00142602,38418.0,38413.0,0.05]
[1643729816205,0.130169,38427.0,38413.0,0.05]
[1643729816406,0.00142604,38417.0,38413.0,0.05]
[1643729816607,0.00142604,38417.0,38415.0,0.13599655]
[1643729816807,0.00142604,38417.0,38416.0,1.16520391]
[1643729817006,0.00142604,38417.0,38416.0,0.197287]
[1643729817209,0.00142604,38417.0,38416.0,0.247287]
[1643729817406,0.130169,38427.0,38416.0,0.247287]
[1643729817605,0.00142602,38418.0,38416.0,0.1]
[1643729817809,0.00142602,38418.0,38416.0,0.08795454]
[1643729818207,0.00142602,38418.0,38415.0,0.23599655]
[1643729818754,0.15261281,38426.0,38407.0,0.1759]
[1643729818755,0.130174,38422.0,38407.0,0.1759]
[1643729819049,0.08753881,38426.0,38407.0,0.1759]
[1643729819050,0.00142602,38418.0,38407.0,0.1759]
[1643729819250,0.24354746,38416.0,38407.0,0.1759]
[1643729819449,0.24354746,38416.0,38406.0,0.24167847]
[1643729819648,0.24354746,38416.0,38413.0,0.14850693]
[1643729819853,0.130187,38420.0,38413.0,0.24578237]
[1643729820049,0.065093,38417.0,38413.0,0.24578237]
[1643729820250,0.065093,38417.0,38413.0,0.22572695]
[1643729820449,0.065095,38415.0,38413.0,0.22572695]
[1643729821555,0.00142606,38416.0,38414.0,0.147287]
[1643729821750,0.19041794,38427.0,38414.0,0.36824493]
[1643729821952,0.2602892,38432.0,38413.0,0.32572695]
[1643729822411,0.2602892,38432.0,38420.0,0.29060811]
[1643729822412,0.21492541,38430.0,38420.0,0.29060811]
[1643729822606,0.31340543,38429.0,38414.0,0.1749]
[1643729822810,0.2602892,38432.0,38420.0,0.05]
[1643729822811,0.130141,38432.0,38420.0,0.05]
[1643729823007,0.16266282,38435.0,38420.0,0.05]
[1643729823205,0.20890568,38434.0,38420.0,0.16706]
[1643729823410,0.001,38435.0,38421.0,0.19726]
[1643729823609,0.001,38435.0,38424.0,1.382]
[1643729823808,0.001,38435.0,38433.0,0.71749858]
[1643729824005,0.001,38435.0,38434.0,0.147188]
[1643729824606,0.001,38435.0,38434.0,0.247188]
[1643729825014,0.001,38435.0,38433.0,0.21141577]
[1643729825206,0.001,38435.0,38425.0,0.27309563]
[1643729825506,0.001,38435.0,38424.0,0.789]
[1643729825705,0.001,38435.0,38428.0,0.25782739]
[1643729825955,0.001,38435.0,38429.0,0.44058627]
[1643729826155,0.00142759,38431.0,38430.0,0.13115065]
[1643729826358,0.00142759,38431.0,38430.0,0.27835965]
[1643729826754,0.00142759,38431.0,38430.0,0.88237802]
[1643729826954,0.001,38435.0,38430.0,0.53237802]
[1643729827155,0.001,38435.0,38431.0,0.147202]
[1643729827354,0.00142757,38432.0,38431.0,0.297202]
[1643729827558,0.00142757,38432.0,38431.0,0.197202]
[1643729827754,0.00142757,38432.0,38431.0,0.497202]
[1643729827956,0.001,38435.0,38431.0,0.297202]
[1643729828354,0.001,38435.0,38431.0,0.147202]
[1643729828554,0.001,38435.0,38431.0,0.197202]
[1643729828754,0.001,38435.0,38431.0,0.147202]
[1643729829601,0.2140643,38442.0,38431.0,0.147202]
[1643729829602,0.2100643,38442.0,38431.0,0.147202]
[1643729829802,0.2100643,38442.0,38424.0,0.789]
[1643729829803,0.0007993,38435.0,38424.0,0.789]
[1643729830401,0.28290168,38432.0,38424.0,0.789]
[1643729830601,0.2151545,38431.0,38424.0,0.789]
[1643729830804,0.08185385,38430.0,38426.0,0.14142855]
[1643729831104,0.065066,38433.0,38426.0,0.14142855]
[1643729831904,0.130122,38436.0,38426.0,0.14142855]
[1643729832105,0.00143106,38434.0,38428.0,0.00126397]
[1643729832710,0.00143106,38434.0,38432.0,0.13984984]
[1643729833105,0.19819301,38441.0,38432.0,0.13984984]
[1643729833354,0.0014311,38435.0,38432.0,0.13984984]
[1643729833749,0.0014311,38435.0,38434.0,0.07576542]
[1643729834352,0.22258402,38441.0,38434.0,0.07576542]
[1643729834550,0.00143108,38436.0,38434.0,0.12576542]
[1643729834754,0.00143108,38436.0,38434.0,0.42402158]
[1643729834951,0.00143108,38436.0,38435.0,0.14718]
[1643729835151,0.00143108,38436.0,38435.0,0.19718]
[1643729835550,0.20890568,38445.0,38435.0,0.19718]
[1643729835752,0.20890568,38450.0,38444.0,0.12341331]
[1643729836351,0.20890568,38450.0,38437.0,0.25440478]
[1643729836555,0.30928082,38450.0,38444.0,0.08201173]
[1643729836754,0.5055,38449.0,38444.0,0.08201173]
[1643729836953,0.00143094,38445.0,38437.0,0.1]
[1643729837201,0.00143094,38445.0,38438.0,0.05]
[1643729837402,0.00143094,38445.0,38443.0,0.13252456]
[1643729838007,0.5055,38449.0,38437.0,0.05498268]
[1643729838201,0.00143092,38446.0,38436.0,0.6519]
[1643729838603,0.00143092,38446.0,38437.0,0.39256637]
[1643729838804,0.00143092,38446.0,38437.0,0.33366069]
[1643729839005,0.00143092,38446.0,38438.0,0.11346247]
[1643729839303,0.01,38449.0,38440.0,0.05]
[1643729839504,0.01,38449.0,38442.0,0.12475147]
[1643729839505,0.00143096,38443.0,38442.0,0.12475147]
[1643729839703,0.00143096,38443.0,38442.0,0.37189447]
[1643729839906,0.00143096,38443.0,38442.0,0.27189447]
[1643729840106,0.00143096,38443.0,38438.0,0.1253226]
[1643729840304,0.20890568,38448.0,38438.0,0.0753226]
[1643729840509,0.10252608,38449.0,38438.0,0.0753226]
[1643729840707,0.00143094,38444.0,38438.0,0.1253226]
[1643729840966,0.00143094,38444.0,38439.0,0.147155]
[1643729841166,0.01,38449.0,38440.0,0.03665346]
[1643729841467,0.01,38449.0,38448.0,0.14733219]
[1643729841664,0.01,38449.0,38441.0,0.05]
[1643729841864,0.01,38449.0,38445.0,0.08080742]
[1643729842064,0.20982746,38449.0,38435.0,0.04911312]
[1643729842265,0.20982746,38449.0,38436.0,0.6519]
[1643729842266,0.01,38449.0,38436.0,0.6519]
[1643729842663,0.01,38449.0,38438.0,0.11185885]
[1643729843068,0.01,38449.0,38445.0,0.08289261]
[1643729843965,0.01,38449.0,38446.0,0.11965972]
[1643729845406,0.01143265,38449.0,38446.0,0.43338715]
[1643729845610,0.01143265,38449.0,38447.0,0.147123]
[1643729846402,0.01820587,38457.0,38449.0,0.22183645]
[1643729846603,0.01820587,38457.0,38450.0,0.147096]